bitfinex/quotes_SOLUSD_20240705
["timestamp","ask_amount","ask_price","bid_price","bid_amount"]
[1720155863445,8.27472125,126.58,126.44,0.17]
[1720155863654,7.9004,126.58,126.44,20.17]
[1720155864361,16.17301344,126.6,126.44,20.17]
[1720155864654,7.8995,126.6,126.44,20.17]
[1720155865030,7.8996,126.59,126.44,20.17]
[1720155865231,22.6545,126.61,126.44,20.17]
[1720155865758,7.8994,126.6,126.44,20.17]
[1720155866130,22.6545,126.61,126.44,20.17]
[1720155866331,7.9006,126.58,126.44,20.17]
[1720155866857,7.8996,126.59,126.44,20.17]
[1720155867261,7.8989,126.6,126.44,20.17]
[1720155867463,7.8995,126.59,126.44,20.17]
[1720155868565,16.0995,126.61,126.44,20.17]
[1720155868943,116.0995,126.61,126.44,25.29618952]
[1720155869154,7.902,126.55,126.43,6.145]
[1720155869539,66.1395,126.61,126.43,6.145]
[1720155869856,0.17,126.6,126.43,6.145]
[1720155870045,7.9002,126.58,126.43,6.145]
[1720155870247,7.9002,126.58,126.43,11.37091196]
[1720155870446,7.9021,126.55,126.43,11.37091196]
[1720155870653,7.9033,126.53,126.44,20.0]
[1720155870861,19.7512,126.58,126.44,20.0]
[1720155871050,66.1395,126.61,126.44,20.0]
[1720155871051,16.0995,126.61,126.44,20.0]
[1720155871266,8.27245742,126.62,126.44,93.95]
[1720155871560,5.36216934,126.65,126.44,70.04]
[1720155871736,8.27232927,126.6,126.45,0.17]
[1720155871935,1.83871844,126.64,126.45,0.17]
[1720155872136,8.2716766,126.63,126.45,0.17]
[1720155872364,7.9002,126.58,126.45,0.17]
[1720155872658,50.04,126.62,126.44,20.0]
[1720155873160,7.9,126.59,126.44,20.0]
[1720155873331,0.17,126.58,126.44,20.0]
[1720155873532,7.8988,126.61,126.44,20.0]
[1720155873741,7.9001,126.58,126.44,20.0]
[1720155874132,0.17,126.6,126.44,20.0]
[1720155874561,8.2716766,126.63,126.44,70.04]
[1720155875261,8.2716766,126.63,126.46,6.0495]
[1720155875463,77.52295958,126.66,126.47,3.8015]
[1720155875464,7.898,126.62,126.47,3.8015]
[1720155875765,7.8971,126.63,126.47,23.8015]
[1720155875961,8.27058811,126.65,126.47,23.8015]
[1720155876145,7.8962,126.65,126.47,23.8015]
[1720155876638,7.8964,126.64,126.47,23.8015]
[1720155876843,30.0652,126.66,126.48,50.04]
[1720155877039,8.26930358,126.67,126.5,6.2566]
[1720155877242,55.37828331,126.68,126.51,20.17]
[1720155877554,63.64654385,126.68,126.51,20.17]
[1720155877752,7.8946,126.67,126.51,20.17]
[1720155878536,16.16226054,126.68,126.51,20.17]
[1720155878742,7.894,126.68,126.51,20.17]
[1720155879152,0.1,126.69,126.54,6.4943]
[1720155879460,0.1,126.69,126.55,20.17]
[1720155880349,0.1,126.69,126.56,56.5343]
[1720155880668,0.1,126.69,126.57,20.17]
[1720155886145,0.1,126.69,126.57,20.0]
[1720155887466,0.1,126.69,126.58,0.17]
[1720155888765,0.1,126.69,126.59,3.6315]
[1720155888946,0.1,126.69,126.6,0.17]
[1720155889363,0.1,126.69,126.59,3.6315]
[1720155890956,0.1,126.69,126.61,6.3333]
[1720155891173,0.1,126.69,126.62,20.17]
[1720155893073,0.1,126.69,126.62,20.0]
[1720155894357,0.1,126.69,126.63,0.17]
[1720155895175,0.1,126.69,126.61,6.3333]
[1720155895350,7.8939,126.68,126.61,6.3333]
[1720155895556,0.1,126.69,126.61,6.3333]
[1720155895860,0.1,126.69,126.57,6.1546]
[1720155895861,7.8944,126.68,126.57,6.1546]
[1720155896062,0.1,126.69,126.57,6.1546]
[1720155896478,7.8942,126.68,126.57,6.1546]
[1720155896955,0.1,126.69,126.57,6.1546]
[1720155897160,0.1,126.69,126.58,20.0]
[1720155897782,7.9933,126.69,126.58,20.0]
[1720155897973,0.1,126.69,126.58,20.0]
[1720155898477,0.1,126.69,126.59,0.17]
[1720155899770,0.1,126.69,126.58,20.0]
[1720155900563,0.79001423,126.59,126.58,20.0]
[1720155900763,0.1,126.69,126.58,20.0]
[1720155901175,0.1,126.69,126.59,0.17]
[1720155902065,0.1,126.69,126.6,2.8415]
[1720155902288,0.1,126.69,126.61,0.17]
[1720155903355,0.1,126.69,126.62,6.4757]
[1720155903561,0.1,126.69,126.63,20.17]
[1720155904075,0.1,126.69,126.62,6.4757]
[1720155906468,0.1,126.69,126.58,11.44404278]
[1720155906664,21.6943,126.68,126.55,2.8418]
[1720155906889,7.8959,126.65,126.55,2.8418]
[1720155907074,7.8959,126.65,126.54,6.0125]
[1720155907075,7.8967,126.64,126.54,6.0125]
[1720155907391,8.0674,126.63,126.5,8.9462]
[1720155907692,8.0671,126.63,126.5,8.9462]
[1720155907873,7.8977,126.62,126.5,8.9462]
[1720155908068,8.0683,126.61,126.5,8.9462]
[1720155908393,0.17,126.6,126.5,6.1044]
[1720155908698,7.8984,126.61,126.5,6.1044]
[1720155908888,20.0,126.64,126.5,6.1044]
[1720155909069,71.7343,126.68,126.5,6.1044]
[1720155909269,7.8958,126.65,126.5,6.1044]
[1720155909580,8.0665,126.64,126.5,6.1044]
[1720155909891,20.0,126.67,126.51,20.0]
[1720155910097,76.99631768,126.68,126.51,20.0]
[1720155910269,26.95631768,126.68,126.53,2.8418]
[1720155910476,26.95631768,126.68,126.54,0.17]
[1720155910477,34.85081768,126.68,126.54,0.17]
[1720155910695,26.95631768,126.68,126.53,2.8418]
[1720155910895,7.8971,126.63,126.53,2.8418]
[1720155911076,50.04,126.65,126.5,6.1044]
[1720155911277,7.8988,126.61,126.5,6.1044]
[1720155911582,7.9002,126.58,126.48,2.8418]
[1720155911776,0.17,126.57,126.48,2.8418]
[1720155911980,0.17,126.57,126.46,6.4348]
[1720155912791,50.04,126.61,126.46,6.4348]
[1720155912970,8.0677,126.62,126.46,6.4348]
[1720155913166,7.8983,126.61,126.46,6.4348]
[1720155913396,7.8995,126.59,126.46,6.4348]
[1720155913894,0.17,126.6,126.46,6.4348]
[1720155913895,7.9008,126.57,126.46,6.4348]
[1720155914214,0.17,126.58,126.46,6.4348]
[1720155914517,100.17,126.59,126.46,6.4348]
[1720155914713,7.9014,126.56,126.46,6.4348]
[1720155914904,8.0707,126.57,126.46,6.4348]
[1720155915213,7.9003,126.58,126.46,6.4348]
[1720155915436,0.17,126.57,126.46,6.4348]
[1720155916193,8.0707,126.57,126.46,6.4348]
[1720155916407,7.9018,126.56,126.46,6.4348]
[1720155916811,0.17,126.55,126.46,6.4348]
[1720155917305,0.17,126.56,126.46,6.4348]
[1720155917503,8.0714,126.56,126.46,6.4348]
[1720155918418,0.17,126.56,126.43,8.19757392]
[1720155918712,23.1159,126.59,126.4,0.2510725]
[1720155918713,7.9064,126.48,126.4,0.2510725]
[1720155918902,0.17,126.49,126.4,0.2510725]
[1720155919816,7.9065,126.48,126.4,0.2510725]
[1720155920014,0.17,126.47,126.4,0.2510725]
[1720155920209,7.9072,126.47,126.4,0.2510725]
[1720155920517,0.79113925,126.42,126.4,0.2510725]
[1720155925800,8.0807,126.41,126.4,0.2510725]
[1720155926004,0.17,126.41,126.31,0.1]
[1720155926200,100.0,126.4,126.31,0.1]
[1720155926503,7.9131,126.38,126.31,0.1]
[1720155926700,0.17,126.37,126.31,0.1]
[1720155927322,8.0828,126.38,126.31,0.1]
[1720155927837,22.20583925,126.42,126.31,0.1]
[1720155928001,7.9122,126.39,126.31,0.1]
[1720155928326,8.0813,126.41,126.31,0.1]
[1720155928501,8.0808,126.41,126.31,0.1]
[1720155928707,7.9114,126.4,126.31,0.1]
[1720155929004,0.17,126.39,126.31,0.1]
[1720155929415,0.17,126.4,126.31,0.1]
[1720155929628,8.0808,126.41,126.31,0.1]
[1720155929923,7.9117,126.4,126.31,0.1]
[1720155930124,0.17,126.39,126.31,0.1]
[1720155930319,0.79113925,126.42,126.31,0.27]
[1720155930523,0.79113925,126.42,126.35,7.9144]
[1720155930726,0.79113925,126.42,126.36,0.17]
[1720155931432,0.79113925,126.42,126.37,6.561]
[1720155931615,0.79113925,126.42,126.38,0.17]
[1720155932326,0.79113925,126.42,126.37,6.561]
[1720155934204,0.79113925,126.42,126.32,8.19555777]
[1720155934401,0.79113925,126.42,126.31,0.1]
[1720155934402,50.04,126.41,126.31,0.1]
[1720155934614,7.9127,126.38,126.31,0.1]
[1720155934820,7.9134,126.37,126.31,0.1]
[1720155935418,0.17,126.36,126.31,0.1]
[1720155935611,8.084,126.36,126.31,0.1]
[1720155936720,0.17,126.36,126.31,0.1]
[1720155937310,57.9528,126.38,126.31,0.1]
[1720155937625,7.912,126.39,126.31,0.1]
[1720155937818,8.28457329,126.41,126.32,0.17]
[1720155938023,0.79113925,126.42,126.32,0.17]
[1720155938403,0.79113925,126.42,126.33,8.979]
[1720155938623,0.79113925,126.42,126.34,20.17]
[1720155939016,0.79113925,126.42,126.34,28.0849]
[1720155939210,0.79113925,126.42,126.34,20.17]
[1720155939405,8.27942595,126.5,126.38,6.5498]
[1720155939707,7.9021,126.55,126.39,20.17]
[1720155939912,7.9021,126.55,126.41,7.9102]
[1720155940114,8.27627179,126.57,126.42,26.7089]
[1720155940414,50.04,126.56,126.43,0.17]
[1720155940818,72.5899,126.61,126.43,0.17]
[1720155941025,7.8995,126.59,126.43,0.17]
[1720155941211,74.86219394,126.61,126.43,0.17]
[1720155941410,7.9014,126.56,126.43,0.17]
[1720155941609,74.86219394,126.61,126.43,0.17]
[1720155941836,174.86219394,126.61,126.43,0.17]
[1720155942010,20.0,126.6,126.43,0.17]
[1720155942613,7.9002,126.58,126.43,0.17]
[1720155942829,20.0,126.6,126.43,0.17]
[1720155943136,7.9036,126.53,126.43,0.17]
[1720155943317,7.9044,126.52,126.42,8.5896]
[1720155943523,7.9033,126.53,126.42,8.5896]
[1720155943727,8.074,126.52,126.42,8.5896]
[1720155944321,0.17,126.52,126.42,8.5896]
[1720155944514,0.17,126.53,126.42,8.5896]
[1720155944715,7.905,126.51,126.42,8.5896]
[1720155945017,7.9051,126.5,126.42,8.5896]
[1720155945445,0.17,126.51,126.42,8.5896]
[1720155945630,7.9045,126.51,126.42,8.5896]
[1720155946351,7.9047,126.51,126.42,8.5896]
[1720155946519,24.82219394,126.61,126.43,20.0]
[1720155946721,74.86219394,126.61,126.44,0.17]
[1720155947236,7.9008,126.57,126.44,0.17]
[1720155947750,100.0,126.6,126.44,0.17]
[1720155948048,7.9038,126.53,126.44,0.17]
[1720155948228,7.9038,126.53,126.43,0.17]
[1720155948621,7.9032,126.54,126.43,0.17]
[1720155949117,0.17,126.53,126.43,0.17]
[1720155949436,0.17,126.54,126.43,0.17]
[1720155949636,0.17,126.54,126.43,20.17]
[1720155949936,0.17,126.54,126.42,8.5896]
[1720155950144,7.9045,126.51,126.42,8.5896]
[1720155950936,8.0752,126.5,126.42,8.5896]
[1720155951139,0.17,126.52,126.42,8.5896]
[1720155951326,100.17,126.52,126.42,8.5896]
[1720155951531,8.4487699,126.52,126.42,8.5896]
[1720155951733,8.2787699,126.52,126.42,8.5896]
[1720155951939,50.04,126.55,126.42,8.5896]
[1720155952253,7.9014,126.56,126.43,0.17]
[1720155952551,7.9015,126.56,126.43,0.17]
[1720155953220,7.9009,126.57,126.43,20.17]
[1720155953626,8.27511841,126.59,126.44,6.6213]
[1720155953837,7.8964,126.64,126.47,6.6213]
[1720155954049,8.27122714,126.65,126.48,20.17]
[1720155954229,7.898,126.62,126.48,20.17]
[1720155954629,7.8983,126.61,126.48,20.17]
[1720155955466,8.0676,126.62,126.48,20.17]
[1720155955749,8.0677,126.62,126.48,20.17]
[1720155958062,7.8995,126.59,126.48,20.0]
[1720155958352,0.17,126.58,126.48,20.0]
[1720155959227,7.8989,126.6,126.48,20.0]
[1720155959228,0.17,126.59,126.48,20.0]
[1720155959445,50.04,126.63,126.48,20.0]
[1720155959633,7.8968,126.64,126.48,20.0]
[1720155960036,8.27122714,126.65,126.48,20.0]
[1720155960037,7.8958,126.65,126.48,20.0]
[1720155960250,65.1445,126.66,126.5,1.2603]
[1720155960251,7.8956,126.66,126.5,1.2603]
[1720155960473,7.8945,126.67,126.52,6.5385]
[1720155960637,7.8945,126.67,126.53,20.17]
[1720155960829,108.36854369,126.69,126.53,20.17]
[1720155961140,7.8964,126.64,126.53,20.17]
[1720155961340,7.8959,126.65,126.53,20.17]
[1720155961947,7.8964,126.64,126.53,20.17]
[1720155962134,7.8955,126.66,126.53,20.17]
[1720155962340,7.8947,126.67,126.53,20.17]
[1720155962544,50.04,126.68,126.53,20.17]
[1720155962545,7.8953,126.66,126.53,20.17]
[1720155962737,100.0,126.66,126.53,20.17]
[1720155963053,7.8965,126.64,126.53,20.17]
[1720155963457,100.0,126.66,126.53,20.17]
[1720155963643,7.8968,126.64,126.53,20.17]
[1720155963840,100.0,126.66,126.53,20.0]
[1720155963841,8.0672,126.63,126.53,20.0]
[1720155964032,7.8983,126.61,126.52,6.5385]
[1720155964236,0.17,126.63,126.52,6.5385]
[1720155964458,7.8946,126.67,126.52,6.5385]
[1720155964627,7.8958,126.65,126.52,6.5385]
[1720155964828,7.8946,126.67,126.52,6.5385]
[1720155965032,7.8949,126.67,126.52,6.5385]
[1720155965252,100.0,126.68,126.52,6.5385]
[1720155965475,7.8963,126.65,126.53,20.17]
[1720155966044,7.8983,126.61,126.53,20.0]
[1720155966247,7.8983,126.61,126.52,6.5385]
[1720155966559,100.0,126.64,126.52,6.5385]
[1720155966788,100.0,126.62,126.52,6.5385]
[1720155966939,100.0,126.62,126.47,5.49432256]
[1720155966940,100.0,126.58,126.47,6.4903]
[1720155967146,7.9014,126.56,126.47,6.4903]
[1720155967341,0.17,126.55,126.47,6.4903]
[1720155967543,20.0,126.59,126.47,6.4903]
[1720155967853,100.17,126.58,126.47,6.4903]
[1720155968058,0.17,126.58,126.47,6.4903]
[1720155968871,50.04,126.64,126.47,6.4903]
[1720155969067,50.04,126.64,126.48,20.0]
[1720155969571,7.8951,126.66,126.49,7.5113]
[1720155969768,7.8958,126.65,126.5,20.17]
[1720155970073,7.8957,126.65,126.5,20.17]
[1720155970250,7.8966,126.64,126.5,20.17]
[1720155970448,7.897,126.63,126.5,20.17]
[1720155970648,7.8977,126.62,126.5,20.17]
[1720155970955,100.0,126.61,126.49,7.5113]
[1720155971155,7.9003,126.58,126.49,7.5113]
[1720155971352,58.1091,126.6,126.49,7.5113]
[1720155971552,0.17,126.6,126.49,7.5113]
[1720155971967,8.27215289,126.62,126.49,7.5113]
[1720155971968,0.17,126.61,126.49,7.5113]
[1720155972171,7.8995,126.59,126.49,7.5113]
[1720155972348,150.04,126.6,126.49,7.5113]
[1720155972668,7.9001,126.58,126.49,7.5113]
[1720155972874,0.17,126.57,126.49,7.5113]
[1720155973753,8.0705,126.58,126.49,7.5113]
[1720155973953,7.9008,126.57,126.49,7.5113]
[1720155974154,0.17,126.56,126.49,7.5113]
[1720155974356,0.17,126.58,126.49,7.5113]
[1720155974653,8.0702,126.58,126.49,7.5113]
[1720155974951,0.17,126.58,126.49,7.5113]
[1720155975144,0.17,126.58,126.38,8.27199507]
[1720155975145,100.0,126.56,126.45,6.2838]
[1720155975486,100.0,126.53,126.45,6.2838]
[1720155975678,7.9039,126.52,126.45,6.2838]
[1720155975843,0.17,126.51,126.45,6.2838]
[1720155976387,8.074,126.52,126.45,6.2838]
[1720155976551,7.9056,126.5,126.45,6.2838]
[1720155976745,100.17,126.52,126.4,6.2628]
[1720155976951,7.9057,126.49,126.4,6.2628]
[1720155977146,0.17,126.48,126.4,6.2628]
[1720155977756,0.17,126.49,126.4,6.2628]
[1720155978065,7.9077,126.46,126.4,6.2628]
[1720155978256,0.17,126.45,126.4,6.2628]
[1720155978654,20.0,126.49,126.4,6.2628]
[1720155978850,7.9081,126.46,126.4,6.2628]
[1720155979058,0.17,126.45,126.4,6.2628]
[1720155979661,0.17,126.46,126.4,6.2628]
[1720155979857,8.0778,126.46,126.4,6.2628]
[1720155980058,7.9086,126.45,126.4,6.2628]
[1720155980253,0.17,126.44,126.36,6.6508]
[1720155980581,0.79138969,126.37,126.36,6.6508]
[1720155980781,0.17,126.44,126.36,6.6508]
[1720155981075,0.17,126.45,126.36,6.6508]
[1720155981384,57.9468,126.48,126.36,6.6508]
[1720155981680,5.45798196,126.5,126.36,6.6508]
[1720155981681,20.0,126.47,126.36,6.6508]
[1720155981896,20.0,126.47,126.37,0.17]
[1720155982178,7.9063,126.48,126.37,0.17]
[1720155982381,8.2814915,126.49,126.37,0.17]
[1720155982555,24.2249,126.53,126.4,7.9108]
[1720155982751,50.04,126.54,126.41,0.17]
[1720155982985,7.9046,126.51,126.41,0.17]
[1720155983359,7.9039,126.52,126.4,0.17]
[1720155983987,7.9039,126.52,126.41,0.4691]
[1720155984162,66.2208336,126.54,126.42,6.2135]
[1720155984359,7.9038,126.53,126.42,6.2135]
[1720155984550,150.04,126.54,126.42,6.2135]
[1720155984753,66.2209018,126.54,126.42,6.2135]
[1720155984975,7.9063,126.49,126.42,6.0435]
[1720155985166,7.9051,126.5,126.42,6.0435]
[1720155985373,7.9057,126.49,126.42,6.0435]
[1720155985762,7.9051,126.5,126.42,6.0435]
[1720155985966,7.9059,126.49,126.42,6.0435]
[1720155986280,0.17,126.5,126.42,6.0435]
[1720155986463,7.9035,126.53,126.42,6.0435]
[1720155986773,7.9036,126.53,126.42,6.0435]
[1720155986978,8.27784515,126.54,126.42,6.0435]
[1720155986979,8.27784515,126.54,126.43,20.17]
[1720155987185,16.1594,126.64,126.45,0.4691]
[1720155987186,50.04,126.61,126.45,0.4691]
[1720155987391,16.1594,126.64,126.46,0.17]
[1720155987563,100.0,126.62,126.46,0.17]
[1720155987758,7.9002,126.58,126.46,0.17]
[1720155987965,7.9007,126.58,126.46,0.17]
[1720155988266,7.9006,126.58,126.46,0.17]
[1720155988777,7.9009,126.57,126.46,0.17]
[1720155990059,8.0701,126.58,126.46,0.17]
[1720155991176,8.27350038,126.61,126.46,0.17]
[1720155991374,7.9,126.59,126.46,0.17]
[1720155992055,7.9012,126.57,126.47,6.265]
[1720155992259,8.27350038,126.61,126.48,20.17]
[1720155992674,7.9,126.59,126.48,20.17]
[1720155993288,0.17,126.58,126.48,20.17]
[1720155993493,7.9,126.59,126.48,20.17]
[1720155993784,8.069,126.6,126.48,20.17]
[1720155994282,0.17,126.6,126.48,20.17]
[1720155994791,8.27350038,126.61,126.5,7.9051]
[1720155995087,50.04,126.66,126.52,6.7461]
[1720155995269,50.04,126.66,126.53,0.17]
[1720155995270,7.8964,126.64,126.53,0.17]
[1720155995480,7.8972,126.63,126.53,0.17]
[1720155995980,7.8964,126.64,126.53,0.17]
[1720155996196,7.8973,126.63,126.53,0.17]
[1720155996911,100.0,126.67,126.53,20.17]
[1720155997487,7.8955,126.66,126.53,20.17]
[1720155997680,7.8959,126.65,126.53,20.17]
[1720155998082,100.0,126.67,126.54,7.9025]
[1720155998279,15.7493,126.69,126.55,0.17]
[1720155998586,21.14815114,126.69,126.55,0.17]
[1720155998793,7.8949,126.67,126.54,0.17]
[1720155999104,7.8953,126.66,126.54,0.17]
[1720155999694,8.0647,126.67,126.54,8.0725]
[1720156000098,7.8952,126.66,126.54,0.17]
[1720156000302,8.0658,126.65,126.54,0.17]
[1720156000482,7.8958,126.65,126.54,0.17]
[1720156000687,0.32116395,126.56,126.54,0.17]
[1720156000976,29.41669931,126.69,126.54,0.17]
[1720156000977,8.36854817,126.69,126.55,4.2639]
[1720156001180,0.1,126.69,126.56,0.17]
[1720156001409,7.8952,126.66,126.56,0.17]
[1720156001587,0.1,126.69,126.55,4.2639]
[1720156001913,7.8968,126.64,126.55,4.2639]
[1720156002087,7.8958,126.65,126.55,4.2639]
[1720156002289,57.9344,126.68,126.55,4.2639]
[1720156002610,8.0648,126.67,126.55,24.2639]
[1720156002908,7.8952,126.66,126.55,24.2639]
[1720156003085,7.8952,126.66,126.55,4.2639]
[1720156003408,0.17,126.65,126.56,0.17]
[1720156003817,8.0651,126.66,126.56,0.17]
[1720156004177,50.14,126.69,126.56,0.17]
[1720156004383,7.9934,126.69,126.56,28.0712]
[1720156004606,7.9934,126.69,126.57,20.0]
[1720156004607,0.1,126.69,126.57,20.0]
[1720156004906,0.1,126.69,126.58,0.17]
[1720156005079,7.9935,126.69,126.58,0.17]
[1720156005289,0.1,126.69,126.59,6.3327]
[1720156005530,0.1,126.69,126.6,20.17]
[1720156006893,0.1,126.69,126.6,28.0686]
[1720156007401,0.1,126.69,126.6,20.17]
[1720156007582,100.0,126.65,126.47,6.2384]
[1720156007792,150.04,126.62,126.47,6.2384]
[1720156008090,100.0,126.6,126.47,6.2384]
[1720156008293,0.17,126.59,126.47,6.2384]
[1720156008605,7.9002,126.58,126.47,6.2384]
[1720156008805,50.04,126.62,126.47,26.0047]
[1720156008986,5.53271319,126.65,126.47,26.0047]
[1720156009188,20.0,126.64,126.47,26.0047]
[1720156009389,0.17,126.63,126.47,26.0047]
[1720156009803,0.17,126.64,126.48,0.17]
[1720156009986,7.8975,126.63,126.49,7.9055]
[1720156010184,0.17,126.62,126.5,0.17]
[1720156010389,0.17,126.62,126.5,20.17]
[1720156011124,0.17,126.62,126.51,6.2248]
[1720156011409,8.0678,126.62,126.52,20.0]
[1720156011611,8.0678,126.62,126.51,6.2248]
[1720156011815,0.17,126.62,126.51,6.2248]
[1720156012014,116.1523,126.69,126.52,20.0]
[1720156012216,0.1,126.69,126.57,6.2248]
[1720156012703,0.1,126.69,126.58,0.17]
[1720156013424,7.9933,126.69,126.58,0.17]
[1720156013718,7.9933,126.69,126.57,6.2248]
[1720156013719,0.1,126.69,126.57,6.2248]
[1720156013898,0.1,126.69,126.58,0.17]
[1720156014315,0.1,126.69,126.59,7.8993]
[1720156014524,0.1,126.69,126.6,0.17]
[1720156014914,0.1,126.69,126.58,20.0]
[1720156015096,0.1,126.69,126.59,0.17]
[1720156015989,0.1,126.69,126.59,8.0691]
[1720156016189,0.1,126.69,126.6,27.8987]
[1720156016414,0.1,126.69,126.62,6.6581]
[1720156016631,0.1,126.69,126.63,20.0]
[1720156016803,0.1,126.69,126.64,0.17]
[1720156017408,0.1,126.69,126.63,20.0]
[1720156017595,0.1,126.69,126.64,0.17]
[1720156018996,0.1,126.69,126.63,20.0]
[1720156019306,0.1,126.69,126.64,0.17]
[1720156019520,0.1,126.69,126.63,20.0]
[1720156019697,0.1,126.69,126.64,0.17]
[1720156020593,0.1,126.69,126.65,7.8956]
[1720156020919,0.1,126.69,126.66,20.17]
[1720156021130,0.8515127,126.71,126.66,20.17]
[1720156021335,0.8515127,126.71,126.68,7.8932]
[1720156021628,0.8515127,126.71,126.69,0.17]
[1720156021918,0.1,126.79,126.69,20.17]
[1720156022512,0.1,126.79,126.71,7.8919]
[1720156022702,0.1,126.79,126.72,20.17]
[1720156023061,0.1,126.79,126.72,0.17]
[1720156023205,0.1,126.79,126.73,14.0152]
[1720156023408,0.1,126.79,126.74,0.17]
[1720156023611,0.1,126.79,126.74,20.17]
[1720156024129,0.1,126.79,126.74,20.0]
[1720156024704,0.1,126.79,126.75,0.17]
[1720156024911,0.1,126.79,126.74,20.0]
[1720156025132,0.1,126.79,126.73,6.1246]
[1720156025705,0.1,126.79,126.69,6.2214]
[1720156026407,0.1,126.79,126.69,14.1141]
[1720156026605,0.1,126.79,126.69,6.2214]
[1720156026841,0.1,126.79,126.7,7.8923]
[1720156027150,0.1,126.79,126.71,20.0]
[1720156027352,0.1,126.79,126.74,6.1898]
[1720156027645,0.1,126.79,126.75,0.17]
[1720156027851,0.1,126.79,126.76,7.8888]
[1720156028034,1.0581942,126.83,126.78,3.9428]
[1720156029449,1.0581942,126.83,126.8,7.8863]
[1720156029649,0.8515127,126.96,126.82,50.04]
[1720156029832,0.8515127,126.96,126.83,23.57977672]
[1720156030030,0.8515127,126.96,126.84,20.0]
[1720156030434,0.8515127,126.96,126.83,0.17]
[1720156030635,0.8515127,126.96,126.84,5.6084]
[1720156030837,7.8771,126.95,126.84,5.6084]
[1720156031130,7.8781,126.94,126.84,5.6084]
[1720156031930,100.0,126.95,126.76,6.1907]
[1720156032151,7.8817,126.88,126.76,6.1907]
[1720156032726,7.8845,126.83,126.72,6.3224]
[1720156032952,100.17,126.84,126.72,6.3224]
[1720156033161,100.17,126.84,126.68,6.3224]
[1720156033162,150.04,126.84,126.68,6.3224]
[1720156033327,7.8871,126.79,126.68,6.3224]
[1720156033525,0.17,126.8,126.68,6.3224]
[1720156033747,50.04,126.84,126.68,6.3224]
[1720156033922,7.8872,126.79,126.68,6.3224]
[1720156034128,8.0565,126.8,126.68,6.3224]
[1720156034530,0.17,126.8,126.68,6.3224]
[1720156035235,8.0564,126.8,126.68,6.3224]
[1720156035428,0.17,126.8,126.68,6.3224]
[1720156036041,8.0558,126.81,126.68,6.3224]
[1720156036230,115.6428,126.86,126.68,26.056]
[1720156036231,7.8835,126.85,126.68,26.056]
[1720156036437,115.6428,126.86,126.68,26.056]
[1720156036738,7.8857,126.82,126.69,20.0]
[1720156036942,7.886,126.81,126.69,20.0]
[1720156037158,7.886,126.81,126.7,0.17]
[1720156037335,7.8849,126.83,126.7,0.17]